bitfinex-derivatives/quotes_BTCF0:USTF0_20251202
["timestamp","ask_amount","ask_price","bid_price","bid_amount"]
[1764688888160,1.03804,90518.0,90517.0,0.00016568]
[1764688888361,0.0110473,90517.0,90515.0,0.00013765]
[1764688888675,1.03804,90518.0,90498.0,0.3608]
[1764688888676,0.0110486,90506.0,90498.0,0.3608]
[1764688888968,0.08915486,90512.0,90511.0,0.33959]
[1764688889156,0.86209,90512.0,90508.0,0.0110484]
[1764688889563,0.32869,90509.0,90503.0,0.0110489]
[1764688889771,0.32869,90500.0,90499.0,0.0110493]
[1764688889969,0.32869,90500.0,90476.0,0.0110523]
[1764688889970,0.0110496,90498.0,90478.0,0.3608]
[1764688890271,0.0110496,90498.0,90484.0,0.0110512]
[1764688890272,0.32869,90488.0,90484.0,0.0110512]
[1764688890477,0.00012797,90487.0,90484.0,0.0110512]
[1764688891265,0.00012797,90487.0,90480.0,0.0110517]
[1764688891266,1.50012797,90487.0,90480.0,0.0110517]
[1764688891468,1.50012797,90487.0,90482.0,0.0110515]
[1764688891469,0.20656092,90484.0,90482.0,0.0110515]
[1764688891664,0.53336,90483.0,90482.0,0.0110515]
[1764688891974,0.53336,90483.0,90482.0,0.6955215]
[1764688892374,0.67224,90479.0,90478.0,0.0110519]
[1764688892764,0.53344281,90483.0,90482.0,0.6948615]
[1764688892972,8.281e-05,90483.0,90482.0,0.6948615]
[1764688893870,0.003,90479.0,90478.0,0.0110519]
[1764688894378,0.003,90479.0,90478.0,0.7087619]
[1764688895476,0.003,90479.0,90477.0,0.3608]
[1764688895477,0.69318,90478.0,90477.0,0.3608]
[1764688895670,0.69326698,90478.0,90477.0,0.3608]
[1764688895870,0.69318,90473.0,90472.0,0.0110526]
[1764688896080,0.69318,90473.0,90454.0,0.3718549]
[1764688896081,0.69318,90466.0,90454.0,0.3608]
[1764688896382,0.00012519,90473.0,90446.0,0.00027641]
[1764688896383,0.69318,90447.0,90446.0,0.00027641]
[1764688896681,1.22658,90447.0,90424.0,0.0110585]
[1764688896972,1.22658,90447.0,90429.0,0.011058]
[1764688896973,0.5334,90447.0,90429.0,0.011058]
[1764688897274,0.5334,90447.0,90439.0,0.0110568]
[1764688897478,0.3608,90445.0,90443.0,0.0110562]
[1764688897674,8.84e-05,90446.0,90443.0,0.0110562]
[1764688897876,8.84e-05,90446.0,90445.0,0.69771]
[1764688898268,0.011,90447.0,90446.0,0.7087659]
[1764688898868,0.00016578,90456.0,90455.0,0.7087648]
[1764688899075,0.3608,90477.0,90469.0,0.7087631]
[1764688899297,0.20668185,90470.0,90469.0,0.7087631]
[1764688899579,0.00012093,90470.0,90469.0,0.7087631]
[1764688900163,0.00012093,90470.0,90469.0,0.0110531]
[1764688900366,0.3608,90476.0,90461.0,0.0110541]
[1764688900678,0.3608,90468.0,90461.0,0.0110541]
[1764688900977,0.3608,90468.0,90467.0,0.0110534]
[1764688901163,0.3608,90468.0,90467.0,0.7087634]
[1764688901369,1.05405121,90468.0,90461.0,0.0110541]
[1764688901668,0.36087121,90468.0,90467.0,0.69771]
[1764688901974,7.121e-05,90468.0,90467.0,0.69771]
[1764688902475,7.121e-05,90468.0,90450.0,0.20044]
[1764688902476,1.00473693,90468.0,90453.0,0.011055]
[1764688902779,0.3608,90454.0,90441.0,0.0110565]
[1764688903076,7.121e-05,90453.0,90452.0,0.69771]
[1764688903379,7.121e-05,90453.0,90432.0,0.20044]
[1764688903577,0.3608,90439.0,90438.0,0.69771]
[1764688903780,0.36087121,90439.0,90438.0,0.69771]
[1764688904262,0.36087121,90439.0,90432.0,0.20044]
[1764688904466,0.3608,90434.0,90416.0,0.20044]
[1764688904768,0.3608,90426.0,90425.0,0.7087685]
[1764688906374,0.3608,90426.0,90425.0,1.2087685]
[1764688906796,0.34549,90426.0,90410.0,0.00965238]
[1764688906966,0.3608,90415.0,90414.0,0.69771]
[1764688907168,0.003,90426.0,90425.0,0.7097685]
[1764688907169,0.017,90426.0,90425.0,0.7097685]
[1764688907475,0.01707121,90426.0,90425.0,0.7097685]
[1764688907669,0.01707121,90426.0,90425.0,1.2432085]
[1764688907971,0.01707121,90426.0,90425.0,2.1040085]
[1764688908176,0.01707121,90426.0,90425.0,1.7432085]
[1764688908472,1e-08,90426.0,90425.0,2.1040085]
[1764688908673,0.3608,90457.0,90453.0,0.0110551]
[1764688909277,0.3608,90473.0,90465.0,0.0110536]
[1764688909478,0.02437428,90472.0,90443.0,0.3608]
[1764688909782,0.3608,90457.0,90456.0,0.7087647]
[1764688910080,0.3608,90465.0,90464.0,0.69771]
[1764688910372,0.38518975,90465.0,90464.0,0.69771]
[1764688910574,0.38518975,90465.0,90464.0,1.23119]
[1764688911471,0.09047198,90481.0,90464.0,1.23119]
[1764688911472,8e-08,90495.0,90494.0,0.7087601]
[1764688911666,0.3608,90504.0,90503.0,0.011049]
[1764688912079,0.3608,90504.0,90503.0,0.367699]
[1764688912279,0.3608,90508.0,90505.0,0.0110487]
[1764688912582,0.3608,90508.0,90494.0,0.53348]
[1764688912583,0.07856894,90510.0,90509.0,0.0110482]
[1764688912782,0.00016576,90516.0,90509.0,0.0110482]
[1764688912783,0.07856894,90513.0,90509.0,0.0110482]
[1764688912976,0.00016576,90516.0,90501.0,0.3608]
[1764688912977,0.07856894,90515.0,90512.0,0.0110478]
[1764688913285,0.07856894,90514.0,90512.0,0.0110478]
[1764688913486,0.00016576,90516.0,90512.0,0.3718478]
[1764688913487,0.07856894,90515.0,90512.0,0.3718478]
[1764688913675,0.00016576,90516.0,90515.0,0.7087575]
[1764688914276,0.0787347,90516.0,90515.0,0.69771]
[1764688914477,0.0787347,90516.0,90503.0,0.001]
[1764688914687,0.07856894,90514.0,90511.0,0.0110479]
[1764688914986,0.07856894,90514.0,90513.0,0.69771]
[1764688915189,0.00016576,90516.0,90513.0,0.69771]
[1764688915477,0.00016576,90516.0,90503.0,0.007]
[1764688915680,0.07895402,90511.0,90507.0,0.0110484]
[1764688916079,0.19794576,90516.0,90504.0,0.4166]
[1764688916281,0.69318,90504.0,90503.0,0.007]
[1764688916476,0.69318,90498.0,90481.0,0.3718517]
[1764688916679,0.3608,90506.0,90497.0,0.69787576]
[1764688916880,0.3608,90514.0,90497.0,0.00016576]
[1764688917081,0.70329,90498.0,90497.0,0.00016576]
[1764688917282,1.05398,90498.0,90497.0,0.00016576]
[1764688918187,0.19778,90497.0,90482.0,0.53336]
[1764688918381,0.19778,90497.0,90461.0,0.3608]
[1764688918382,0.3608,90483.0,90461.0,0.3608]
[1764688918581,0.20656092,90480.0,90468.0,0.0110532]
[1764688918786,0.3608,90483.0,90482.0,0.35665]
[1764688918977,0.3638,90498.0,90471.0,0.3608]
[1764688918978,0.3638,90498.0,90494.0,0.0110501]
[1764688919179,0.3638,90498.0,90496.0,0.0110498]
[1764688919490,0.3638,90498.0,90491.0,0.0110503]
[1764688919876,0.003,90498.0,90494.0,0.01105]
[1764688920187,0.003,90498.0,90497.0,0.3608]
[1764688920377,0.003,90498.0,90497.0,0.7087597]
[1764688920579,0.003,90498.0,90487.0,0.00016576]
[1764688920580,0.34249,90492.0,90487.0,0.00016576]
[1764688921085,0.3608,90490.0,90487.0,0.00016576]
[1764688921276,0.3608,90490.0,90489.0,0.35665]
[1764688921477,0.3608,90490.0,90489.0,0.69771]
[1764688921679,0.3608,90490.0,90487.0,0.01121656]
[1764688921979,0.3608,90490.0,90462.0,0.3608]
[1764688921980,0.011052,90478.0,90462.0,0.3608]
[1764688922185,0.20656092,90480.0,90462.0,0.3608]
[1764688922380,0.015,90492.0,90491.0,0.0110504]
[1764688922587,0.015,90492.0,90490.0,0.0110505]
[1764688923091,0.015,90492.0,90491.0,0.35665]
[1764688923392,0.015,90492.0,90490.0,0.0110505]
[1764688923684,0.015,90492.0,90489.0,0.0110506]
[1764688923874,0.015,90492.0,90491.0,0.67113]
[1764688924286,0.00016576,90500.0,90499.0,0.6821795]
[1764688924477,0.3608,90510.0,90509.0,0.6821782]
[1764688924783,0.02415522,90510.0,90509.0,0.6821782]
[1764688924987,0.07895402,90536.0,90534.0,0.3446152]
[1764688925179,0.07895402,90548.0,90530.0,0.89412]
[1764688925375,0.3608,90552.0,90546.0,0.0110437]
[1764688925586,0.00016576,90548.0,90547.0,0.33357]
[1764688925882,0.00016576,90548.0,90530.0,0.36096576]
[1764688925883,0.00016576,90548.0,90530.0,0.00016576]
[1764688926083,0.69552,90531.0,90530.0,0.00016576]
[1764688926285,0.3608,90538.0,90530.0,0.00016576]
[1764688926589,0.011042,90560.0,90530.0,0.00016576]
[1764688926590,0.20656092,90550.0,90547.0,0.0110436]
[1764688926886,0.3608,90556.0,90547.0,0.6821736]
[1764688927089,0.07895402,90569.0,90567.0,0.0110411]
[1764688927295,0.20656092,90580.0,90569.0,0.0110408]
[1764688927488,0.3608,90570.0,90547.0,0.3608]
[1764688927680,0.3608,90570.0,90568.0,0.0110409]
[1764688927992,0.212008,90594.0,90568.0,0.0110409]
[1764688927993,0.07895402,90587.0,90586.0,0.67113]
[1764688928177,0.19955905,90620.0,90600.0,0.0110371]
[1764688928178,0.09811903,90608.0,90600.0,0.0110371]
[1764688928373,0.3608,90612.0,90600.0,0.0110371]
[1764688928586,0.00016556,90612.0,90605.0,0.67113]
[1764688928781,0.00016556,90612.0,90611.0,0.67113]
[1764688928984,0.36096556,90612.0,90602.0,0.5332]
[1764688929188,0.69552,90603.0,90584.0,0.011039]
[1764688929486,0.69552,90603.0,90589.0,0.0110385]
[1764688929686,0.69552,90601.0,90600.0,0.001]
[1764688930281,0.3608,90604.0,90600.0,0.001]
[1764688930681,0.33627,90601.0,90600.0,0.005]
[1764688931183,0.00016556,90612.0,90604.0,0.3446067]
[1764688931390,0.00016556,90612.0,90600.0,0.008]
[1764688931582,0.20656092,90610.0,90600.0,0.008]
[1764688931893,0.3608,90605.0,90600.0,0.008]
[1764688932081,0.001,90603.0,90600.0,0.008]
[1764688932285,0.33627,90595.0,90594.0,0.00016556]
[1764688932486,0.3608,90595.0,90594.0,0.00016556]
[1764688932880,0.001,90603.0,90594.0,0.00016556]
[1764688933082,0.20097,90594.0,90567.0,0.3608]
[1764688933281,0.3608,90582.0,90572.0,0.0110404]
[1764688933478,0.3608,90582.0,90567.0,0.3608]
[1764688933783,0.3608,90595.0,90584.0,0.0110391]
[1764688933987,0.3608,90587.0,90578.0,0.0110398]
[1764688934289,0.3608,90587.0,90582.0,0.0110393]
[1764688934493,0.00016556,90592.0,90587.0,0.0110387]
[1764688934676,0.00016556,90592.0,90577.0,0.0110399]
[1764688934882,0.3608,90578.0,90573.0,0.00016556]
[1764688935085,0.69552,90574.0,90573.0,0.00016556]
[1764688935282,0.7065613,90566.0,90565.0,0.00013335]
[1764688935486,1.0673613,90566.0,90565.0,0.00013335]
[1764688935682,1.05632,90566.0,90565.0,0.00013335]
[1764688936088,0.69707,90566.0,90565.0,0.00013335]
[1764688936390,1.0673613,90566.0,90565.0,0.00013335]
[1764688936691,0.0110431,90552.0,90541.0,0.3608]
[1764688936890,0.3608,90549.0,90546.0,0.0110437]
[1764688937098,0.3608,90549.0,90541.0,0.3608]
[1764688937099,0.1540229,90551.0,90542.0,0.0110442]
[1764688937388,0.00016566,90556.0,90555.0,0.6821726]
[1764688937698,0.00028287,90556.0,90555.0,0.6821726]
[1764688938579,0.00028287,90556.0,90555.0,0.0110426]
[1764688938790,0.00028287,90556.0,90550.0,0.0110431]
[1764688938991,0.3608,90551.0,90546.0,1.0]
[1764688939296,0.3608,90551.0,90546.0,0.5]
[1764688939587,0.02232537,90556.0,90546.0,0.5]
[1764688939588,0.01128287,90556.0,90555.0,0.0110426]
[1764688939982,0.01128287,90556.0,90544.0,0.011044]
[1764688940183,0.3718431,90552.0,90547.0,0.0110436]
[1764688940584,0.01428287,90556.0,90555.0,0.0110426]
[1764688940797,0.00328287,90556.0,90555.0,0.6821726]
[1764688941298,0.00328287,90556.0,90555.0,0.0110426]
[1764688941788,0.00328287,90556.0,90552.0,0.3608]
[1764688941989,0.00328287,90556.0,90547.0,0.001]
[1764688941990,0.0110434,90549.0,90547.0,0.001]
[1764688942191,0.3608,90553.0,90550.0,0.0110432]
[1764688942387,0.3608,90553.0,90529.0,0.0110458]
[1764688942388,0.3608,90553.0,90515.0,0.3608]
[1764688942593,0.01328287,90556.0,90508.0,0.00010832]
[1764688942594,0.0110461,90527.0,90508.0,0.00010832]
[1764688942897,0.3608,90523.0,90519.0,0.011047]
[1764688943087,0.3718466,90523.0,90519.0,0.011047]
[1764688943394,0.69552,90518.0,90517.0,0.5]
[1764688943793,0.69552,90509.0,90508.0,0.00010832]
[1764688943998,0.69552,90487.0,90486.0,0.00027629]
[1764688944184,0.3608,90487.0,90459.0,0.3608]
[1764688944390,0.3608,90478.0,90459.0,0.3608]
[1764688944589,0.36096577,90478.0,90474.0,0.0110524]
[1764688944794,0.00016577,90478.0,90474.0,0.0110524]
[1764688944993,9.187e-05,90477.0,90474.0,0.0110524]
[1764688945497,9.187e-05,90477.0,90476.0,1.03193]
[1764688946695,9.187e-05,90477.0,90476.0,0.3608]
[1764688946896,9.187e-05,90477.0,90476.0,0.0110523]
[1764688947096,0.01109187,90477.0,90476.0,0.6831823]
[1764688947795,0.01309187,90477.0,90476.0,0.33457]
[1764688948098,0.01309187,90477.0,90476.0,0.001]
[1764688948896,0.01309187,90477.0,90476.0,0.67213]
[1764688949330,0.01309187,90477.0,90476.0,0.001]
[1764688949787,0.00016577,90478.0,90477.0,0.6821821]
[1764688949788,4e-08,90478.0,90477.0,0.6821821]
[1764688949994,0.1540229,90500.0,90480.0,0.19476]
[1764688950201,0.1540229,90500.0,90499.0,0.0110495]
[1764688950388,0.3608,90508.0,90506.0,0.0110485]
[1764688950993,0.0110486,90506.0,90498.0,0.00016577]
[1764688951196,0.3608,90500.0,90498.0,0.00016577]
[1764688951495,0.0001238,90507.0,90506.0,0.33357]
[1764688951690,0.0001238,90507.0,90506.0,0.6821786]
[1764688951894,0.00016577,90516.0,90515.0,0.6821775]
[1764688952209,0.0889457,90536.0,90515.0,0.6821775]
[1764688952210,0.0889457,90536.0,90534.0,0.0110452]
[1764688952502,0.0889457,90536.0,90535.0,0.67113]
[1764688952693,0.3608,90549.0,90516.0,0.19476]
[1764688952694,0.3608,90538.0,90522.0,0.3608]
[1764688952897,0.3608,90529.0,90516.0,0.0110473]
[1764688953085,0.3608,90520.0,90513.0,0.00016577]
[1764688953292,0.5148229,90520.0,90513.0,0.00016577]
[1764688953587,0.0110476,90515.0,90513.0,0.00016577]
[1764688953794,0.011049,90504.0,90492.0,0.0110502]
[1764688953990,0.0110498,90497.0,90483.0,0.3608]
[1764688954200,0.1560229,90500.0,90496.0,0.0110498]
[1764688954591,0.002,90500.0,90496.0,0.0110498]
[1764688954796,0.002,90500.0,90489.0,0.00016577]
[1764688955001,0.1560229,90500.0,90489.0,0.00016577]
[1764688955202,0.1540229,90500.0,90489.0,0.00016577]
[1764688955598,0.66351,90490.0,90489.0,0.00016577]
[1764688956899,0.3608,90492.0,90491.0,0.67573]
[1764688957107,0.3628,90504.0,90489.0,0.21793637]
[1764688957108,0.005,90500.0,90489.0,0.00016577]
[1764688957400,0.005,90500.0,90498.0,0.0110495]
[1764688957608,0.007,90500.0,90498.0,0.0110495]
[1764688957801,0.002,90500.0,90499.0,1.03653]
[1764688958493,0.1540229,90520.0,90506.0,0.0110486]
[1764688958705,0.1540229,90520.0,90506.0,0.6867786]
[1764688959000,0.5148229,90530.0,90529.0,0.0110458]
[1764688959206,0.38522626,90530.0,90529.0,0.0110458]
[1764688959402,0.38522626,90530.0,90523.0,0.0110464]
[1764688959601,0.38522626,90530.0,90514.0,0.3608]
[1764688959602,0.66351,90527.0,90514.0,0.3608]
[1764688959802,0.1540229,90524.0,90514.0,0.3608]
[1764688960003,0.3608,90518.0,90511.0,0.0110479]
[1764688960203,0.1540229,90524.0,90514.0,0.3608]
[1764688960403,0.0244454,90523.0,90518.0,0.0110471]
[1764688960712,0.1540229,90524.0,90521.0,0.0110467]
[1764688960915,0.1540229,90524.0,90515.0,0.0110475]
[1764688961206,0.1540229,90524.0,90514.0,0.3658]
[1764688961207,0.3608,90522.0,90514.0,0.3658]
[1764688961395,0.3608,90522.0,90519.0,0.011047]
[1764688961599,0.02446638,90521.0,90515.0,0.0110475]
[1764688961795,0.3608,90522.0,90514.0,0.005]
[1764688962003,0.33244,90516.0,90514.0,0.005]
[1764688962202,0.33244,90516.0,90506.0,0.3608]
[1764688962402,0.33244,90516.0,90513.0,0.0110477]
[1764688962607,0.3608,90522.0,90517.0,0.0110472]
[1764688962811,0.02449309,90521.0,90520.0,0.0110468]
[1764688963702,0.02449309,90521.0,90514.0,0.3608]
[1764688963703,0.66351,90515.0,90514.0,0.3608]
[1764688964025,0.005,90521.0,90517.0,0.0110472]
[1764688964196,0.5148229,90530.0,90513.0,0.0110477]
[1764688964197,0.0110473,90517.0,90513.0,0.0110477]
[1764688964400,0.66351,90512.0,90511.0,0.00016577]
[1764688964618,0.02451047,90512.0,90511.0,0.00016577]
[1764688964804,0.0245332,90512.0,90511.0,0.00016577]
[1764688965002,0.02453314,90512.0,90511.0,0.00016577]
[1764688966299,1.04884314,90512.0,90511.0,0.00016577]
[1764688966510,1.04884314,90512.0,90486.0,0.36107629]
[1764688966511,0.33244,90487.0,90486.0,0.00027629]
[1764688966699,1.02431,90487.0,90486.0,0.00027629]
[1764688966905,0.1540229,90496.0,90495.0,0.68678]
[1764688967099,0.3608,90504.0,90501.0,0.0110491]
[1764688967410,0.02456525,90503.0,90501.0,0.0110491]
[1764688967714,0.3608,90504.0,90494.0,0.01105]
[1764688968016,0.3608,90504.0,90486.0,0.36107629]
[1764688968201,0.0110483,90509.0,90504.0,0.0110488]
[1764688968406,0.0110486,90506.0,90487.0,0.0110509]
[1764688968606,0.0110486,90506.0,90502.0,0.0110491]
[1764688968813,0.36396577,90512.0,90486.0,0.36107629]
[1764688968814,0.0110494,90500.0,90486.0,0.36107629]
[1764688969013,0.66351,90499.0,90486.0,0.36107629]
[1764688969208,0.1650723,90500.0,90494.0,0.01105]
[1764688969509,0.3628,90504.0,90486.0,0.36107629]
[1764688969510,0.3628,90504.0,90503.0,0.011049]
[1764688969719,0.002,90504.0,90503.0,0.011049]
[1764688970012,0.00016577,90512.0,90511.0,0.011048]
[1764688970308,0.00016577,90512.0,90492.0,0.3608]
[1764688970309,0.004,90504.0,90503.0,0.011049]
[1764688970509,0.004,90504.0,90503.0,0.343229]
[1764688970811,0.01121367,90512.0,90509.0,0.0110482]
[1764688971018,0.01121367,90512.0,90496.0,0.3608]
[1764688971019,0.69324,90510.0,90496.0,0.3608]
[1764688971310,0.8472629,90510.0,90508.0,0.0110483]
[1764688971717,0.0110485,90507.0,90504.0,0.0110488]
[1764688971915,0.66351,90505.0,90496.0,0.3608]
[1764688972128,0.003,90504.0,90496.0,0.3608]
[1764688972409,0.003,90504.0,90486.0,0.00027629]
[1764688972410,0.0110501,90494.0,90486.0,0.00027629]
[1764688972615,0.66351,90487.0,90486.0,0.01132729]
[1764688973613,0.33244,90487.0,90486.0,0.01132729]
[1764688973811,0.0110504,90491.0,90487.0,0.0110509]
[1764688974019,0.66351,90488.0,90487.0,0.0110509]
[1764688974610,0.66351,90488.0,90487.0,0.3718509]
[1764688974813,0.5148229,90510.0,90487.0,0.3608]
[1764688975003,0.3608,90510.0,90506.0,0.0110486]
[1764688975203,0.5148229,90510.0,90506.0,0.0110486]
[1764688975404,0.66651,90507.0,90506.0,0.0110486]
[1764688975620,0.66651,90507.0,90504.0,0.0110488]
[1764688976513,0.66351,90505.0,90497.0,0.3608]
[1764688976715,0.66351,90505.0,90487.0,0.3608]
[1764688976716,0.66351,90504.0,90503.0,0.0110489]
[1764688977409,0.66351,90504.0,90487.0,0.3608]
[1764688977410,0.3718481,90510.0,90509.0,0.0110482]
[1764688977606,0.3608,90510.0,90509.0,0.0110482]
[1764688977807,0.1540229,90520.0,90511.0,0.67573]
[1764688978115,0.66351,90508.0,90507.0,0.0110485]
[1764688978316,0.6745584,90508.0,90498.0,0.3608]
[1764688978517,0.66351,90499.0,90492.0,0.3608]
[1764688978710,0.66351,90499.0,90497.0,0.0110497]
[1764688979225,0.218559,90504.0,90486.0,0.00027629]
[1764688979226,0.3608,90498.0,90486.0,0.00027629]
[1764688979518,0.1540229,90496.0,90486.0,0.00027629]
[1764688979720,0.33244,90495.0,90494.0,0.01105]
[1764688980016,0.33244,90495.0,90486.0,0.00027629]
[1764688980017,0.66351,90487.0,90486.0,0.00027629]
[1764688980315,1.02431,90487.0,90486.0,0.00027629]
[1764688980708,0.3608,90498.0,90497.0,0.0110497]
[1764688980908,0.003,90499.0,90498.0,0.67573]
[1764688981508,0.003,90499.0,90497.0,0.3718497]
[1764688981509,0.33544,90499.0,90497.0,0.3608]
[1764688981822,0.33544,90499.0,90486.0,0.00027629]
[1764688981823,0.003,90487.0,90486.0,0.00027629]
[1764688982121,0.003,90499.0,90498.0,0.6867796]
[1764688982620,0.1540229,90510.0,90497.0,0.3608]
[1764688982919,0.3608,90516.0,90508.0,0.0110483]
[1764688983507,0.3608,90516.0,90511.0,0.34774]
[1764688983711,0.3608,90526.0,90511.0,0.6853]
[1764688983912,0.3608,90526.0,90525.0,0.6963463]
[1764688984313,0.33594,90534.0,90533.0,0.0110453]
[1764688984512,0.3608,90536.0,90535.0,0.6853]
[1764688984713,0.05862099,90552.0,90550.0,0.0110432]
[1764688984918,0.3608,90555.0,90550.0,0.0110432]
[1764688985114,0.33594,90543.0,90542.0,0.00016568]
[1764688985315,1.0404,90543.0,90542.0,0.00016568]
[1764688985623,1.0404,90543.0,90517.0,0.3608]
[1764688985825,0.3608,90532.0,90517.0,0.3608]
[1764688986019,0.3608,90543.0,90517.0,0.3608]
[1764688986319,0.05862099,90559.0,90540.0,0.19937]
[1764688986523,0.3608,90565.0,90563.0,0.0110417]
[1764688986715,0.00027604,90566.0,90565.0,0.6853]
[1764688987025,0.00016568,90573.0,90572.0,0.6963406]
[1764688987216,0.05862099,90587.0,90581.0,0.6963395]
[1764688987416,0.05862099,90588.0,90586.0,0.6963388]
[1764688987618,0.3608,90594.0,90586.0,0.6963388]
[1764688987619,0.05862099,90589.0,90586.0,0.6963388]
[1764688988114,0.05862099,90593.0,90592.0,0.34774]
[1764688988320,0.05878657,90597.0,90593.0,0.011038]
[1764688988619,0.05878657,90597.0,90578.0,0.00016558]
[1764688988620,0.05862099,90594.0,90578.0,0.00016558]
[1764688988921,0.6796,90587.0,90586.0,0.012]
[1764688989123,0.6796,90579.0,90558.0,0.0110422]
[1764688989326,0.001,90589.0,90563.0,0.0110416]
[1764688989327,0.1540229,90570.0,90563.0,0.0110416]
[1764688989517,0.3608,90572.0,90563.0,0.0110416]
[1764688989710,0.3608,90564.0,90548.0,0.3608]
[1764688989918,0.3608,90556.0,90548.0,0.3608]
[1764688990222,0.3608,90556.0,90543.0,0.53268]
[1764688990521,0.3608,90556.0,90546.0,0.0110437]
[1764688990821,0.0110439,90545.0,90529.0,0.0110457]
[1764688991020,0.3608,90535.0,90525.0,0.3718462]
[1764688991221,0.00016568,90539.0,90530.0,0.0110457]
[1764688991421,0.3608,90534.0,90530.0,0.0110457]
[1764688991622,0.3608,90538.0,90535.0,0.011045]
[1764688992018,0.3608,90538.0,90525.0,0.3608]
[1764688992418,0.3608,90538.0,90505.0,0.0110486]
[1764688992419,0.3608,90528.0,90505.0,0.0110486]
[1764688992615,0.00016568,90539.0,90513.0,0.6853]
[1764688992616,0.3608,90514.0,90513.0,0.6853]
[1764688992825,0.00216568,90539.0,90535.0,0.0110451]
[1764688993324,0.3608,90569.0,90538.0,0.6853]
[1764688993526,0.33594,90574.0,90573.0,0.0110404]
[1764688993825,0.6796,90574.0,90573.0,0.0110404]
[1764688994013,0.6796,90574.0,90569.0,0.0110409]
[1764688994218,0.05862099,90600.0,90591.0,0.0110382]
[1764688994417,0.05862099,90607.0,90598.0,0.0110374]
[1764688994619,0.00016557,90605.0,90591.0,0.0110381]
[1764688994821,0.3608,90604.0,90591.0,0.0110381]
[1764688995028,0.1540229,90601.0,90590.0,0.3608]
[1764688995228,0.3608,90594.0,90586.0,0.00016557]
[1764688995620,0.0110367,90604.0,90586.0,0.00016557]
[1764688995922,0.00016557,90605.0,90596.0,0.3608]
[1764688996426,0.6796,90592.0,90591.0,0.004]
[1764688996725,0.6796,90592.0,90586.0,0.00016557]
[1764688997029,0.33594,90592.0,90591.0,0.001]
[1764688997228,0.6796,90592.0,90591.0,0.001]
[1764688997421,0.33594,90587.0,90586.0,0.00616557]
[1764688997930,0.3608,90592.0,90586.0,0.00616557]
[1764688998122,0.3608,90592.0,90586.0,0.00716557]
[1764688998317,0.6796,90587.0,90586.0,0.00116557]
[1764688999020,0.3608,90592.0,90591.0,0.6853]
[1764688999219,0.3608,90592.0,90586.0,0.00216557]
[1764688999220,0.3618,90592.0,90586.0,0.00816557]
[1764689000222,0.3608,90587.0,90560.0,0.5324]
[1764689000421,0.3608,90587.0,90571.0,0.6963406]
[1764689000629,0.3718388,90587.0,90570.0,0.3608]
[1764689000833,0.3608,90587.0,90566.0,0.3608]
[1764689001029,0.001,90592.0,90566.0,0.3608]
[1764689001030,0.001,90592.0,90591.0,0.001]
[1764689001221,0.6806,90592.0,90591.0,0.001]
[1764689001818,0.6796,90592.0,90576.0,0.37184]
[1764689002024,0.6796,90592.0,90566.0,0.3608]
[1764689002025,0.0110414,90566.0,90545.0,0.0110438]
[1764689002218,0.3608,90555.0,90549.0,0.0110433]
[1764689002425,0.3608,90555.0,90543.0,0.371844]
[1764689002623,0.3608,90555.0,90543.0,0.3608]
[1764689002828,0.3608,90563.0,90554.0,0.0110428]
[1764689003325,0.3608,90563.0,90543.0,0.3608]
[1764689003633,0.006,90555.0,90553.0,0.0110429]
[1764689003836,0.006,90555.0,90552.0,0.3608]
[1764689003837,0.6796,90553.0,90552.0,0.3608]
[1764689004037,0.006,90555.0,90552.0,0.3718429]
[1764689004335,0.006,90555.0,90554.0,0.70854]
[1764689004535,0.006,90555.0,90554.0,1.0461]
[1764689004924,0.00016557,90565.0,90564.0,0.6963415]
[1764689005330,0.00016557,90565.0,90554.0,0.3608]
[1764689005532,0.00016557,90565.0,90560.0,0.011042]
[1764689006229,0.2063982,90590.0,90589.0,0.0110385]
[1764689006432,0.6796,90590.0,90589.0,0.0110385]
[1764689006734,0.3608,90593.0,90562.0,0.5]
[1764689006934,0.2063982,90580.0,90562.0,0.5]
[1764689007133,0.371838,90593.0,90582.0,0.0110393]
[1764689007338,0.2063982,90592.0,90586.0,0.0110388]
[1764689007540,0.2063982,90592.0,90590.0,0.0110384]
[1764689007741,0.33594,90591.0,90590.0,0.0110384]
[1764689008038,0.33594,90591.0,90578.0,0.00016557]
[1764689008039,0.33610557,90597.0,90596.0,0.0110376]
[1764689008231,0.00016557,90597.0,90596.0,0.0110376]
[1764689008541,0.00016557,90597.0,90596.0,0.6963376]
[1764689008926,0.00016557,90597.0,90588.0,0.0110385]
[1764689009130,0.67976557,90597.0,90596.0,0.5]
[1764689009742,0.00016557,90597.0,90596.0,0.505]
[1764689009941,0.00016557,90597.0,90596.0,0.506]
[1764689010137,0.67976557,90597.0,90596.0,0.506]
[1764689010337,0.67976557,90597.0,90596.0,0.006]
[1764689010841,0.3608,90586.0,90579.0,0.0110396]
[1764689011040,0.6796,90579.0,90578.0,0.00016557]
[1764689011540,0.3608,90586.0,90579.0,0.0110397]
[1764689011732,0.6796,90579.0,90578.0,0.00016557]
[1764689012134,0.0110418,90562.0,90543.0,0.6576]
[1764689012363,0.33594,90549.0,90534.0,0.3608]
[1764689012534,0.3608,90555.0,90546.0,0.0110436]
[1764689013248,0.3608,90555.0,90543.0,0.001]
[1764689013451,0.3608,90555.0,90544.0,0.0110439]
[1764689013649,0.3608,90555.0,90548.0,0.0110434]
[1764689014341,0.3608,90555.0,90552.0,0.0110429]
[1764689014542,0.3608,90555.0,90547.0,0.0110435]
[1764689014732,0.3608,90555.0,90554.0,0.0110428]
[1764689014938,0.40553387,90560.0,90559.0,0.0110421]
[1764689014939,0.00016567,90560.0,90559.0,0.0110421]
[1764689015344,0.00016567,90560.0,90559.0,0.6947421]
[1764689015547,0.3608,90572.0,90551.0,0.53212]
[1764689015747,0.3608,90572.0,90570.0,0.0110407]
[1764689016047,0.3608,90572.0,90559.0,0.5]
[1764689016640,0.3608,90572.0,90568.0,0.0110409]
[1764689016834,0.00016567,90575.0,90574.0,0.0110403]
[1764689017537,0.00016567,90575.0,90574.0,0.6947403]
[1764689017736,0.00016567,90575.0,90574.0,0.6837]
[1764689018740,0.00016567,90575.0,90574.0,0.6337]
[1764689019944,0.01220587,90575.0,90574.0,0.6407]